[Event "Titled Tuesday Blitz November 01 Early 2022"]
[White "Durarbayli, Vasif"]
[Black "Ovchinnikov, Vsevolod"]
[WhiteFideId "13402935"]
[BlackFideId "24176842"]
[WhiteElo "2586"]
[BlackElo "2376"]
[Result "0-1"]
[Round "08"]
[TimeControl "180+1"]
[Date "2022.11.01"]
[WhiteClock "0:00:01"]
[BlackClock "0:00:10"]

1. e4 {[%clk 0:03:00]}  g6 {[%clk 0:03:00]} 2. d4 {[%clk 0:03:00]}  Bg7 {[%clk 0:03:01]} 3. Nc3 {[%clk 0:03:01]}  a6 {[%clk 0:03:01]} 4. Be3 {[%clk 0:03:01]}  b5 {[%clk 0:03:02]} 5. g4 {[%clk 0:03:02]}  b4 {[%clk 0:03:00]} 6. Nce2 {[%clk 0:03:01]}  Bb7 {[%clk 0:03:00]} 7. Bg2 {[%clk 0:03:02]}  Nf6 {[%clk 0:02:54]} 8. Ng3 {[%clk 0:02:29]}  h5 {[%clk 0:02:54]} 9. g5 {[%clk 0:02:19]}  Ng4 {[%clk 0:02:53]} 10. Bc1 {[%clk 0:02:16]}  c5 {[%clk 0:02:31]} 11. h3 {[%clk 0:02:15]}  Nxf2 {[%clk 0:01:49]} 12. Kxf2 {[%clk 0:02:16]}  Bxd4+ {[%clk 0:01:49]} 13. Kf1 {[%clk 0:02:04]}  a5 {[%clk 0:01:43]} 14. N3e2 {[%clk 0:02:03]}  Ba6 {[%clk 0:01:34]} 15. Nf3 {[%clk 0:01:56]}  Nc6 {[%clk 0:01:32]} 16. Qe1 {[%clk 0:01:36]}  Qb6 {[%clk 0:00:46]} 17. c3 {[%clk 0:01:33]}  bxc3 {[%clk 0:00:46]} 18. bxc3 {[%clk 0:01:34]}  Bg7 {[%clk 0:00:34]} 19. Kf2 {[%clk 0:01:20]}  Rb8 {[%clk 0:00:30]} 20. Nf4 {[%clk 0:01:13]}  e6 {[%clk 0:00:20]} 21. Kg3 {[%clk 0:01:05]}  Qc7 {[%clk 0:00:18]} 22. Kh2 {[%clk 0:00:32]}  a4 {[%clk 0:00:15]} 23. Qg3 {[%clk 0:00:27]}  Bxc3 {[%clk 0:00:14]} 24. Be3 {[%clk 0:00:22]}  Bxa1 {[%clk 0:00:10]} 25. Rxa1 {[%clk 0:00:23]}  d6 {[%clk 0:00:10]} 26. Rc1 {[%clk 0:00:15]}  Rb2 {[%clk 0:00:06]} 27. Kh1 {[%clk 0:00:15]}  O-O {[%clk 0:00:06]} 28. e5 {[%clk 0:00:10]}  Nxe5 {[%clk 0:00:02]} 29. Nxe5 {[%clk 0:00:10]}  dxe5 {[%clk 0:00:03]} 30. Nxh5 {[%clk 0:00:09]}  gxh5 {[%clk 0:00:02]} 31. Rxc5 {[%clk 0:00:09]}  Qd6 {[%clk 0:00:02]} 32. g6 {[%clk 0:00:09]}  f6 {[%clk 0:00:02]} 33. Rc6 {[%clk 0:00:08]}  Qd1+ {[%clk 0:00:01]} 34. Kh2 {[%clk 0:00:07]}  Bf1 {[%clk 0:00:02]} 35. Bf2 {[%clk 0:00:04]}  Rxf2 {[%clk 0:00:02]} 36. Qxf2 {[%clk 0:00:04]}  Bxg2 {[%clk 0:00:03]} 37. Qxg2 {[%clk 0:00:04]}  Qd5 {[%clk 0:00:04]} 38. Qc2 {[%clk 0:00:02]}  e4 {[%clk 0:00:03]} 39. Rc7 {[%clk 0:00:03]}  Qe5+ {[%clk 0:00:03]} 40. Kh1 {[%clk 0:00:03]}  Qg5 {[%clk 0:00:03]} 41. Qxe4 {[%clk 0:00:01]}  Qf5 {[%clk 0:00:04]} 42. Qxf5 {[%clk 0:00:01]}  exf5 {[%clk 0:00:05]} 43. Ra7 {[%clk 0:00:02]}  Re8 {[%clk 0:00:04]} 44. Rxa4 {[%clk 0:00:02]}  Kg7 {[%clk 0:00:05]} 45. Kg2 {[%clk 0:00:02]}  Kxg6 {[%clk 0:00:06]} 46. Ra7 {[%clk 0:00:02]}  Re3 {[%clk 0:00:06]} 47. h4 {[%clk 0:00:01]}  Re4 {[%clk 0:00:06]} 48. Kg3 {[%clk 0:00:01]}  Rg4+ {[%clk 0:00:06]} 49. Kh3 {[%clk 0:00:02]}  f4 {[%clk 0:00:07]} 50. Ra4 {[%clk 0:00:02]}  Rg3+ {[%clk 0:00:07]} 51. Kh2 {[%clk 0:00:02]}  Kf5 {[%clk 0:00:08]} 52. Ra6 {[%clk 0:00:02]}  Re3 {[%clk 0:00:07]} 53. a4 {[%clk 0:00:02]}  Re2+ {[%clk 0:00:07]} 54. Kh3 {[%clk 0:00:01]}  Re3+ {[%clk 0:00:08]} 55. Kg2 {[%clk 0:00:02]}  Ra3 {[%clk 0:00:08]} 56. a5 {[%clk 0:00:02]}  Kg4 {[%clk 0:00:09]} 57. Rxf6 {[%clk 0:00:01]}  Ra2+ {[%clk 0:00:09]} 58. Kg1 {[%clk 0:00:01]}  Rxa5 {[%clk 0:00:10]} 59. Rg6+ {[%clk 0:00:02]}  Kxh4 {[%clk 0:00:10]} 60. Kf2 {[%clk 0:00:02]}  Rg5 {[%clk 0:00:09]} 61. Ra6 {[%clk 0:00:02]}  Kg4 {[%clk 0:00:10]} 62. Ra8 {[%clk 0:00:01]}  h4 {[%clk 0:00:10]} 0-1


[Site "https://www.chess.com"]

[Event "Titled Tuesday Blitz November 01 Early 2022"]
[White "Faizrakhmanov, Ramil"]
[Black "Kodinets, Konstantin L."]
[WhiteFideId "24103209"]
[BlackFideId "4122011"]
[WhiteElo "2421"]
[BlackElo "2447"]
[Result "1-0"]
[Round "08"]
[TimeControl "180+1"]
[Date "2022.11.02"]
[WhiteClock "0:00:50"]
[BlackClock "0:00:16"]

1. d4 {[%clk 0:03:00]}  d6 {[%clk 0:02:54]} 2. Nf3 {[%clk 0:03:00]}  Nf6 {[%clk 0:02:55]} 3. c4 {[%clk 0:02:59]}  Nbd7 {[%clk 0:02:55]} 4. Nc3 {[%clk 0:03:00]}  c6 {[%clk 0:02:56]} 5. e4 {[%clk 0:03:00]}  e5 {[%clk 0:02:57]} 6. d5 {[%clk 0:02:58]}  Be7 {[%clk 0:02:57]} 7. h3 {[%clk 0:02:52]}  a6 {[%clk 0:02:55]} 8. Be3 {[%clk 0:02:50]}  cxd5 {[%clk 0:02:55]} 9. cxd5 {[%clk 0:02:49]}  b5 {[%clk 0:02:55]} 10. a3 {[%clk 0:02:48]}  O-O {[%clk 0:02:55]} 11. Be2 {[%clk 0:02:48]}  Nb6 {[%clk 0:02:53]} 12. O-O {[%clk 0:02:48]}  Bd7 {[%clk 0:02:53]} 13. Nxe5 {[%clk 0:02:43]}  dxe5 {[%clk 0:02:49]} 14. d6 {[%clk 0:02:43]}  Nc8 {[%clk 0:02:48]} 15. dxe7 {[%clk 0:02:42]}  Nxe7 {[%clk 0:02:35]} 16. Qd6 {[%clk 0:02:40]}  Nc6 {[%clk 0:02:24]} 17. Rfd1 {[%clk 0:02:36]}  h6 {[%clk 0:01:57]} 18. Rd2 {[%clk 0:02:24]}  Re8 {[%clk 0:01:45]} 19. Rad1 {[%clk 0:02:22]}  Qc8 {[%clk 0:01:44]} 20. Bf3 {[%clk 0:02:06]}  Na5 {[%clk 0:01:12]} 21. Nd5 {[%clk 0:01:53]}  Nxd5 {[%clk 0:01:10]} 22. Rxd5 {[%clk 0:01:51]}  Nc4 {[%clk 0:01:04]} 23. Qxd7 {[%clk 0:01:48]}  Nxb2 {[%clk 0:00:42]} 24. Rc1 {[%clk 0:01:28]}  Nc4 {[%clk 0:00:32]} 25. Bh5 {[%clk 0:01:15]}  Rf8 {[%clk 0:00:27]} 26. Bc5 {[%clk 0:01:08]}  Qxd7 {[%clk 0:00:20]} 27. Rxd7 {[%clk 0:01:09]}  Rfc8 {[%clk 0:00:20]} 28. Bxf7+ {[%clk 0:01:08]}  Kh8 {[%clk 0:00:20]} 29. Bd5 {[%clk 0:00:51]}  Rab8 {[%clk 0:00:16]} 30. Ba7 {[%clk 0:00:50]} 1-0


[Site "https://www.chess.com"]

[Event "Titled Tuesday Blitz November 01 Early 2022"]
[White "Flis, Pawel"]
[Black "Vargas, Mauricio"]
[WhiteFideId "1112864"]
[BlackFideId "4404572"]
[WhiteElo "1836"]
[BlackElo "2025"]
[Result "1-0"]
[Round "08"]
[TimeControl "180+1"]
[Date "2022.11.02"]
[WhiteClock "0:00:38"]
[BlackClock "0:00:52"]

1. e4 {[%clk 0:02:59]}  d5 {[%clk 0:02:59]} 2. exd5 {[%clk 0:02:56]}  Qxd5 {[%clk 0:03:00]} 3. Nc3 {[%clk 0:02:56]}  Qa5 {[%clk 0:03:00]} 4. Bc4 {[%clk 0:02:56]}  Nf6 {[%clk 0:02:59]} 5. d3 {[%clk 0:02:55]}  c6 {[%clk 0:02:58]} 6. Nf3 {[%clk 0:02:55]}  Bg4 {[%clk 0:02:58]} 7. h3 {[%clk 0:02:56]}  Bh5 {[%clk 0:02:58]} 8. g4 {[%clk 0:02:56]}  Bg6 {[%clk 0:02:58]} 9. Bd2 {[%clk 0:02:44]}  Qc7 {[%clk 0:02:57]} 10. Qe2 {[%clk 0:02:38]}  e6 {[%clk 0:02:55]} 11. Ne5 {[%clk 0:02:29]}  Nbd7 {[%clk 0:02:54]} 12. f4 {[%clk 0:02:26]}  Bd6 {[%clk 0:02:50]} 13. Nxd7 {[%clk 0:02:19]}  Qxd7 {[%clk 0:02:31]} 14. f5 {[%clk 0:02:19]}  Bg3+ {[%clk 0:02:30]} 15. Kd1 {[%clk 0:02:12]}  O-O-O {[%clk 0:02:20]} 16. fxg6 {[%clk 0:02:10]}  hxg6 {[%clk 0:02:19]} 17. Qf3 {[%clk 0:02:02]}  Bc7 {[%clk 0:02:14]} 18. Bf4 {[%clk 0:02:01]}  e5 {[%clk 0:02:10]} 19. Bg5 {[%clk 0:01:59]}  Rde8 {[%clk 0:02:03]} 20. Kc1 {[%clk 0:01:48]}  Nxg4 {[%clk 0:01:54]} 21. hxg4 {[%clk 0:01:41]}  Rxh1+ {[%clk 0:01:53]} 22. Qxh1 {[%clk 0:01:42]}  Qxg4 {[%clk 0:01:51]} 23. Bd2 {[%clk 0:01:28]}  f6 {[%clk 0:01:49]} 24. b3 {[%clk 0:01:27]}  e4 {[%clk 0:01:47]} 25. Nxe4 {[%clk 0:01:17]}  Be5 {[%clk 0:01:45]} 26. Bc3 {[%clk 0:01:07]}  Qf4+ {[%clk 0:01:36]} 27. Kb2 {[%clk 0:00:59]}  b5 {[%clk 0:01:28]} 28. Bf7 {[%clk 0:00:54]}  Re7 {[%clk 0:01:10]} 29. Bxg6 {[%clk 0:00:51]}  Qg5 {[%clk 0:01:06]} 30. Nxg5 {[%clk 0:00:45]}  fxg5 {[%clk 0:01:04]} 31. Qxc6+ {[%clk 0:00:44]}  Bc7 {[%clk 0:01:03]} 32. Bf5+ {[%clk 0:00:42]}  Kb8 {[%clk 0:01:02]} 33. Rh1 {[%clk 0:00:40]}  g4 {[%clk 0:00:59]} 34. Rh8+ {[%clk 0:00:39]}  Bd8 {[%clk 0:00:52]} 35. Rxd8# {[%clk 0:00:38]} 1-0


[Site "https://www.chess.com"]

[Event "Titled Tuesday Blitz November 01 Early 2022"]
[White "Garayev, Kanan"]
[Black "Ilkhomi, Jaloliddin"]
[WhiteFideId "13406671"]
[BlackFideId "14700948"]
[WhiteElo "2244"]
[BlackElo "2045"]
[Result "0-1"]
[Round "08"]
[TimeControl "180+1"]
[Date "2022.11.02"]
[WhiteClock "0:00:26"]
[BlackClock "0:00:11"]

1. d4 {[%clk 0:03:00]}  Nf6 {[%clk 0:02:58]} 2. c4 {[%clk 0:03:00]}  e6 {[%clk 0:02:58]} 3. g3 {[%clk 0:02:59]}  Bb4+ {[%clk 0:02:58]} 4. Nd2 {[%clk 0:02:59]}  O-O {[%clk 0:02:58]} 5. Bg2 {[%clk 0:02:59]}  d5 {[%clk 0:02:58]} 6. Qc2 {[%clk 0:02:56]}  c6 {[%clk 0:02:56]} 7. Nf3 {[%clk 0:02:55]}  Ne4 {[%clk 0:02:55]} 8. O-O {[%clk 0:02:54]}  f5 {[%clk 0:02:55]} 9. a3 {[%clk 0:02:52]}  Bd6 {[%clk 0:02:55]} 10. b4 {[%clk 0:02:46]}  Nd7 {[%clk 0:02:54]} 11. Bb2 {[%clk 0:02:44]}  Qf6 {[%clk 0:02:50]} 12. Ne1 {[%clk 0:02:39]}  g5 {[%clk 0:02:30]} 13. Nd3 {[%clk 0:02:34]}  Nxd2 {[%clk 0:02:27]} 14. Qxd2 {[%clk 0:02:34]}  f4 {[%clk 0:02:27]} 15. e4 {[%clk 0:02:28]}  Qf7 {[%clk 0:01:51]} 16. e5 {[%clk 0:02:19]}  Be7 {[%clk 0:01:49]} 17. cxd5 {[%clk 0:02:19]}  cxd5 {[%clk 0:01:47]} 18. gxf4 {[%clk 0:02:19]}  gxf4 {[%clk 0:01:47]} 19. Bf3 {[%clk 0:02:20]}  Nb6 {[%clk 0:01:45]} 20. Kh1 {[%clk 0:02:15]}  Nc4 {[%clk 0:01:45]} 21. Rg1+ {[%clk 0:02:16]}  Kh8 {[%clk 0:01:45]} 22. Qe2 {[%clk 0:02:16]}  Nxb2 {[%clk 0:01:44]} 23. Qxb2 {[%clk 0:02:17]}  Bd7 {[%clk 0:01:44]} 24. Rg4 {[%clk 0:02:12]}  Bb5 {[%clk 0:01:32]} 25. Qd2 {[%clk 0:02:08]}  h5 {[%clk 0:00:54]} 26. Rg2 {[%clk 0:01:52]}  Qf5 {[%clk 0:00:52]} 27. Rd1 {[%clk 0:01:39]}  Rg8 {[%clk 0:00:49]} 28. Nb2 {[%clk 0:01:18]}  Rxg2 {[%clk 0:00:46]} 29. Bxg2 {[%clk 0:01:19]}  Rg8 {[%clk 0:00:39]} 30. Rg1 {[%clk 0:01:18]}  Bg5 {[%clk 0:00:17]} 31. Bf3 {[%clk 0:01:16]}  Bh6 {[%clk 0:00:16]} 32. Rxg8+ {[%clk 0:01:02]}  Kxg8 {[%clk 0:00:17]} 33. Qd1 {[%clk 0:00:57]}  Be8 {[%clk 0:00:17]} 34. Qd3 {[%clk 0:00:54]}  Qxd3 {[%clk 0:00:14]} 35. Nxd3 {[%clk 0:00:54]}  b6 {[%clk 0:00:15]} 36. Kg2 {[%clk 0:00:48]}  Bg6 {[%clk 0:00:15]} 37. Be2 {[%clk 0:00:49]}  h4 {[%clk 0:00:13]} 38. a4 {[%clk 0:00:43]}  f3+ {[%clk 0:00:13]} 39. Bxf3 {[%clk 0:00:35]}  Bxd3 {[%clk 0:00:14]} 40. Bg4 {[%clk 0:00:35]}  Kf7 {[%clk 0:00:12]} 41. Bh5+ {[%clk 0:00:35]}  Bg6 {[%clk 0:00:11]} 42. Bd1 {[%clk 0:00:36]}  Bd2 {[%clk 0:00:11]} 43. b5 {[%clk 0:00:36]}  Bf5 {[%clk 0:00:10]} 44. Kf3 {[%clk 0:00:35]}  Kg6 {[%clk 0:00:09]} 45. Ke2 {[%clk 0:00:34]}  Bf4 {[%clk 0:00:10]} 46. Kf3 {[%clk 0:00:31]}  Bxh2 {[%clk 0:00:07]} 47. Kg2 {[%clk 0:00:31]}  Bf4 {[%clk 0:00:07]} 48. Kf3 {[%clk 0:00:29]}  Kg5 {[%clk 0:00:08]} 49. Kg2 {[%clk 0:00:28]}  h3+ {[%clk 0:00:07]} 50. Kh1 {[%clk 0:00:28]}  Kh4 {[%clk 0:00:06]} 51. a5 {[%clk 0:00:27]}  Be4+ {[%clk 0:00:06]} 52. f3 {[%clk 0:00:27]}  Bd3 {[%clk 0:00:06]} 53. axb6 {[%clk 0:00:27]}  axb6 {[%clk 0:00:07]} 54. Kg1 {[%clk 0:00:28]}  Kg3 {[%clk 0:00:07]} 55. Kh1 {[%clk 0:00:28]}  h2 {[%clk 0:00:07]} 56. Be2 {[%clk 0:00:25]}  Bf5 {[%clk 0:00:07]} 57. Bd3 {[%clk 0:00:23]}  Bh3 {[%clk 0:00:07]} 58. Bf1 {[%clk 0:00:23]}  Bf5 {[%clk 0:00:07]} 59. Bd3 {[%clk 0:00:23]}  Kxf3 {[%clk 0:00:07]} 60. Bxf5 {[%clk 0:00:23]}  exf5 {[%clk 0:00:07]} 61. e6 {[%clk 0:00:24]}  Bd6 {[%clk 0:00:08]} 62. e7 {[%clk 0:00:24]}  Bxe7 {[%clk 0:00:09]} 63. Kxh2 {[%clk 0:00:25]}  f4 {[%clk 0:00:09]} 64. Kg1 {[%clk 0:00:25]}  Ke2 {[%clk 0:00:10]} 65. Kg2 {[%clk 0:00:26]}  f3+ {[%clk 0:00:11]} 0-1


[Site "https://www.chess.com"]

[Event "Titled Tuesday Blitz November 01 Early 2022"]
[White "Gharibyan, Mamikon"]
[Black "Grover, Sahaj"]
[WhiteFideId "13308300"]
[BlackFideId "5021103"]
[WhiteElo "2378"]
[BlackElo "2432"]
[Result "1-0"]
[Round "08"]
[TimeControl "180+1"]
[Date "2022.11.01"]
[WhiteClock "0:01:20"]
[BlackClock "0:00:23"]

1. Nf3 {[%clk 0:03:00]}  Nf6 {[%clk 0:02:55]} 2. g3 {[%clk 0:03:00]}  g6 {[%clk 0:02:56]} 3. b3 {[%clk 0:03:00]}  Bg7 {[%clk 0:02:56]} 4. Bb2 {[%clk 0:03:00]}  O-O {[%clk 0:02:56]} 5. c4 {[%clk 0:03:00]}  d5 {[%clk 0:02:57]} 6. cxd5 {[%clk 0:02:59]}  Qxd5 {[%clk 0:02:51]} 7. Bg2 {[%clk 0:02:57]}  Nc6 {[%clk 0:02:45]} 8. Nc3 {[%clk 0:02:53]}  Qh5 {[%clk 0:02:45]} 9. h3 {[%clk 0:02:52]}  Bd7 {[%clk 0:02:13]} 10. a3 {[%clk 0:02:46]}  Rad8 {[%clk 0:01:52]} 11. g4 {[%clk 0:02:25]}  Qc5 {[%clk 0:01:48]} 12. b4 {[%clk 0:02:23]}  Qd6 {[%clk 0:01:36]} 13. Nb5 {[%clk 0:02:17]}  Qf4 {[%clk 0:01:28]} 14. e3 {[%clk 0:02:06]}  Qc4 {[%clk 0:01:27]} 15. Qe2 {[%clk 0:01:59]}  Qxe2+ {[%clk 0:01:17]} 16. Kxe2 {[%clk 0:02:00]}  Nxb4 {[%clk 0:01:15]} 17. Nxc7 {[%clk 0:01:51]}  Na6 {[%clk 0:00:43]} 18. Rhc1 {[%clk 0:01:48]}  Nxc7 {[%clk 0:00:33]} 19. Rxc7 {[%clk 0:01:47]}  Nd5 {[%clk 0:00:29]} 20. Rxb7 {[%clk 0:01:37]}  Bc6 {[%clk 0:00:30]} 21. Bxg7 {[%clk 0:01:35]}  Bxb7 {[%clk 0:00:29]} 22. Bxf8 {[%clk 0:01:35]}  Ba6+ {[%clk 0:00:29]} 23. Ke1 {[%clk 0:01:29]}  Kxf8 {[%clk 0:00:29]} 24. Nd4 {[%clk 0:01:29]}  e6 {[%clk 0:00:25]} 25. Nc6 {[%clk 0:01:27]}  Rd7 {[%clk 0:00:24]} 26. a4 {[%clk 0:01:24]}  Bd3 {[%clk 0:00:23]} 27. Ne5 {[%clk 0:01:24]}  Nb4 {[%clk 0:00:23]} 28. Nxd7+ {[%clk 0:01:22]}  Ke7 {[%clk 0:00:23]} 29. Nc5 {[%clk 0:01:20]} 1-0


[Site "https://www.chess.com"]

[Event "Titled Tuesday Blitz November 01 Early 2022"]
[White "Goltseva, Ekaterina"]
[Black "Muminova, Nafisa"]
[WhiteFideId "24173770"]
[BlackFideId "14201526"]
[WhiteElo "2200"]
[BlackElo "2258"]
[Result "1-0"]
[Round "08"]
[TimeControl "180+1"]
[Date "2022.11.02"]
[WhiteClock "0:00:16"]
[BlackClock "0:00:08"]

1. d4 {[%clk 0:03:00]}  Nf6 {[%clk 0:02:59]} 2. c4 {[%clk 0:03:01]}  e6 {[%clk 0:02:59]} 3. Nf3 {[%clk 0:03:01]}  b6 {[%clk 0:02:58]} 4. g3 {[%clk 0:03:02]}  Bb7 {[%clk 0:02:58]} 5. Bg2 {[%clk 0:03:02]}  Be7 {[%clk 0:02:56]} 6. O-O {[%clk 0:03:03]}  O-O {[%clk 0:02:56]} 7. Re1 {[%clk 0:03:03]}  c5 {[%clk 0:02:50]} 8. d5 {[%clk 0:02:58]}  exd5 {[%clk 0:02:43]} 9. Nh4 {[%clk 0:02:58]}  d6 {[%clk 0:02:30]} 10. Nc3 {[%clk 0:02:47]}  Nbd7 {[%clk 0:02:11]} 11. cxd5 {[%clk 0:02:33]}  Ne5 {[%clk 0:01:59]} 12. Nf5 {[%clk 0:02:29]}  Re8 {[%clk 0:01:56]} 13. Nxe7+ {[%clk 0:02:23]}  Qxe7 {[%clk 0:01:53]} 14. a4 {[%clk 0:02:11]}  h6 {[%clk 0:01:32]} 15. e4 {[%clk 0:02:07]}  Bc8 {[%clk 0:01:24]} 16. h3 {[%clk 0:02:04]}  Ng6 {[%clk 0:01:17]} 17. f4 {[%clk 0:02:00]}  Rb8 {[%clk 0:01:10]} 18. Kh1 {[%clk 0:01:22]}  a6 {[%clk 0:01:08]} 19. e5 {[%clk 0:01:18]}  dxe5 {[%clk 0:01:07]} 20. fxe5 {[%clk 0:01:18]}  Nxe5 {[%clk 0:00:56]} 21. Rxe5 {[%clk 0:01:18]}  Qxe5 {[%clk 0:00:52]} 22. Bf4 {[%clk 0:01:17]}  Qe7 {[%clk 0:00:28]} 23. Bxb8 {[%clk 0:01:15]}  Bg4 {[%clk 0:00:18]} 24. hxg4 {[%clk 0:01:12]}  Rxb8 {[%clk 0:00:18]} 25. d6 {[%clk 0:01:07]}  Qd7 {[%clk 0:00:18]} 26. Bf3 {[%clk 0:01:02]}  Re8 {[%clk 0:00:17]} 27. Kg2 {[%clk 0:00:51]}  Re6 {[%clk 0:00:17]} 28. Qf1 {[%clk 0:00:40]}  Rxd6 {[%clk 0:00:18]} 29. Rd1 {[%clk 0:00:41]}  Rd4 {[%clk 0:00:18]} 30. Rxd4 {[%clk 0:00:36]}  cxd4 {[%clk 0:00:19]} 31. Ne4 {[%clk 0:00:36]}  Nd5 {[%clk 0:00:18]} 32. Qd3 {[%clk 0:00:34]}  Ne3+ {[%clk 0:00:18]} 33. Kf2 {[%clk 0:00:34]}  Qxa4 {[%clk 0:00:18]} 34. Nd2 {[%clk 0:00:31]}  Qb4 {[%clk 0:00:17]} 35. Nb3 {[%clk 0:00:29]}  a5 {[%clk 0:00:14]} 36. Nxd4 {[%clk 0:00:29]}  Nc4 {[%clk 0:00:13]} 37. b3 {[%clk 0:00:26]}  Nb2 {[%clk 0:00:13]} 38. Qe3 {[%clk 0:00:21]}  a4 {[%clk 0:00:13]} 39. bxa4 {[%clk 0:00:19]}  Qxa4 {[%clk 0:00:12]} 40. Nf5 {[%clk 0:00:18]}  Nc4 {[%clk 0:00:11]} 41. Qd4 {[%clk 0:00:17]}  Qc2+ {[%clk 0:00:10]} 42. Be2 {[%clk 0:00:17]}  Nd2 {[%clk 0:00:08]} 43. Qxg7# {[%clk 0:00:16]} 1-0


[Site "https://www.chess.com"]

[Event "Titled Tuesday Blitz November 01 Early 2022"]
[White "Goryachkina, Aleksandra"]
[Black "Parpiev, Isaak"]
[WhiteFideId "4147103"]
[BlackFideId "34281576"]
[WhiteElo "2484"]
[BlackElo "2100"]
[Result "1/2-1/2"]
[Round "08"]
[TimeControl "180+1"]
[Date "2022.11.02"]
[WhiteClock "0:00:36"]
[BlackClock "0:00:36"]

1. e4 {[%clk 0:02:59]}  e5 {[%clk 0:02:56]} 2. Nf3 {[%clk 0:02:59]}  Nc6 {[%clk 0:02:56]} 3. d4 {[%clk 0:02:59]}  exd4 {[%clk 0:02:53]} 4. Nxd4 {[%clk 0:02:59]}  Bc5 {[%clk 0:02:50]} 5. Be3 {[%clk 0:02:58]}  Qf6 {[%clk 0:02:50]} 6. c3 {[%clk 0:02:58]}  Nge7 {[%clk 0:02:50]} 7. Bb5 {[%clk 0:02:55]}  Bb6 {[%clk 0:02:43]} 8. O-O {[%clk 0:02:51]}  O-O {[%clk 0:02:41]} 9. a4 {[%clk 0:02:50]}  d5 {[%clk 0:02:29]} 10. Bxc6 {[%clk 0:01:51]}  bxc6 {[%clk 0:02:17]} 11. a5 {[%clk 0:01:48]}  Bc5 {[%clk 0:02:16]} 12. e5 {[%clk 0:01:41]}  Qxe5 {[%clk 0:02:00]} 13. Nxc6 {[%clk 0:01:28]}  Nxc6 {[%clk 0:01:48]} 14. Bxc5 {[%clk 0:01:28]}  Re8 {[%clk 0:01:46]} 15. Nd2 {[%clk 0:01:09]}  Ba6 {[%clk 0:01:39]} 16. Re1 {[%clk 0:01:03]}  Qxe1+ {[%clk 0:01:08]} 17. Qxe1 {[%clk 0:01:04]}  Rxe1+ {[%clk 0:01:08]} 18. Rxe1 {[%clk 0:01:04]}  Nxa5 {[%clk 0:01:09]} 19. Re7 {[%clk 0:01:00]}  Nc4 {[%clk 0:00:49]} 20. Nxc4 {[%clk 0:00:53]}  Bxc4 {[%clk 0:00:37]} 21. Rxc7 {[%clk 0:00:46]}  a5 {[%clk 0:00:37]} 22. Ra7 {[%clk 0:00:36]}  Rxa7 {[%clk 0:00:37]} 23. Bxa7 {[%clk 0:00:36]}  Kf8 {[%clk 0:00:36]} 1/2-1/2


[Site "https://www.chess.com"]

[Event "Titled Tuesday Blitz November 01 Early 2022"]
[White "Kirillov, Dmitry"]
[Black "Kosteniuk, Alexandra"]
[WhiteFideId "34180572"]
[BlackFideId "4128125"]
[WhiteElo "2095"]
[BlackElo "2469"]
[Result "0-1"]
[Round "08"]
[TimeControl "180+1"]
[Date "2022.11.02"]
[WhiteClock "0:00:02"]
[BlackClock "0:00:18"]

1. d4 {[%clk 0:03:00]}  f5 {[%clk 0:02:59]} 2. Nf3 {[%clk 0:03:01]}  Nf6 {[%clk 0:02:59]} 3. c4 {[%clk 0:02:57]}  g6 {[%clk 0:02:59]} 4. Nc3 {[%clk 0:02:58]}  Bg7 {[%clk 0:03:00]} 5. g3 {[%clk 0:02:58]}  O-O {[%clk 0:03:00]} 6. Bg2 {[%clk 0:02:59]}  d6 {[%clk 0:03:00]} 7. O-O {[%clk 0:02:59]}  a5 {[%clk 0:03:00]} 8. d5 {[%clk 0:02:53]}  Na6 {[%clk 0:02:55]} 9. Be3 {[%clk 0:02:50]}  b6 {[%clk 0:02:50]} 10. Nd4 {[%clk 0:02:46]}  Nc5 {[%clk 0:02:49]} 11. Rc1 {[%clk 0:02:32]}  Bd7 {[%clk 0:02:46]} 12. b3 {[%clk 0:02:31]}  Nfe4 {[%clk 0:02:43]} 13. Nxe4 {[%clk 0:02:25]}  Nxe4 {[%clk 0:02:25]} 14. Qc2 {[%clk 0:01:53]}  Nc5 {[%clk 0:02:08]} 15. Rcd1 {[%clk 0:01:50]}  Qe8 {[%clk 0:02:07]} 16. Ne6 {[%clk 0:01:33]}  Nxe6 {[%clk 0:02:01]} 17. dxe6 {[%clk 0:01:33]}  Bc6 {[%clk 0:02:02]} 18. Bd5 {[%clk 0:01:33]}  h6 {[%clk 0:01:53]} 19. Qd2 {[%clk 0:01:23]}  Kh7 {[%clk 0:01:52]} 20. Bd4 {[%clk 0:01:23]}  Bf6 {[%clk 0:01:47]} 21. f3 {[%clk 0:01:15]}  Bxd5 {[%clk 0:01:43]} 22. cxd5 {[%clk 0:01:15]}  c5 {[%clk 0:01:37]} 23. Bxf6 {[%clk 0:01:02]}  Rxf6 {[%clk 0:01:36]} 24. e4 {[%clk 0:01:03]}  a4 {[%clk 0:01:31]} 25. Qe2 {[%clk 0:00:52]}  axb3 {[%clk 0:01:30]} 26. axb3 {[%clk 0:00:53]}  fxe4 {[%clk 0:01:27]} 27. fxe4 {[%clk 0:00:54]}  Qh8 {[%clk 0:01:26]} 28. Rxf6 {[%clk 0:00:47]}  Qxf6 {[%clk 0:01:25]} 29. Rf1 {[%clk 0:00:47]}  Qd4+ {[%clk 0:01:26]} 30. Kg2 {[%clk 0:00:48]}  h5 {[%clk 0:00:47]} 31. Rf7+ {[%clk 0:00:46]}  Kh6 {[%clk 0:00:48]} 32. h4 {[%clk 0:00:28]}  Ra1 {[%clk 0:00:45]} 33. Rf1 {[%clk 0:00:25]}  Ra3 {[%clk 0:00:43]} 34. Qc2 {[%clk 0:00:22]}  Ra1 {[%clk 0:00:26]} 35. Rxa1 {[%clk 0:00:13]}  Qxa1 {[%clk 0:00:27]} 36. Qd2+ {[%clk 0:00:14]}  Kg7 {[%clk 0:00:27]} 37. Qg5 {[%clk 0:00:09]}  Qb2+ {[%clk 0:00:27]} 38. Kh3 {[%clk 0:00:09]}  Qf6 {[%clk 0:00:26]} 39. Qc1 {[%clk 0:00:05]}  Qe5 {[%clk 0:00:25]} 40. Qf4 {[%clk 0:00:04]}  Qxf4 {[%clk 0:00:20]} 41. gxf4 {[%clk 0:00:05]}  b5 {[%clk 0:00:21]} 42. e5 {[%clk 0:00:04]}  Kf8 {[%clk 0:00:20]} 43. Kg3 {[%clk 0:00:03]}  c4 {[%clk 0:00:20]} 44. bxc4 {[%clk 0:00:01]}  b4 {[%clk 0:00:21]} 45. c5 {[%clk 0:00:02]}  dxc5 {[%clk 0:00:21]} 46. d6 {[%clk 0:00:02]}  exd6 {[%clk 0:00:21]} 47. exd6 {[%clk 0:00:02]}  b3 {[%clk 0:00:20]} 48. f5 {[%clk 0:00:03]}  gxf5 {[%clk 0:00:19]} 49. Kf4 {[%clk 0:00:03]}  b2 {[%clk 0:00:20]} 50. Ke5 {[%clk 0:00:03]}  b1=Q {[%clk 0:00:20]} 51. Kf6 {[%clk 0:00:03]}  Qb2+ {[%clk 0:00:19]} 52. Kg6 {[%clk 0:00:02]}  Qg7+ {[%clk 0:00:18]} 53. Kxf5 {[%clk 0:00:02]}  c4 {[%clk 0:00:18]} 54. d7 {[%clk 0:00:02]}  Ke7 {[%clk 0:00:18]} 0-1


[Site "https://www.chess.com"]